{"text_format":"1","workbook":"xlsx","n_sheets":3,"sheets":["Dashboard","Bodega de datos","Tablas dinámicas"],"not_rendered":{"charts":3,"images":31,"macros":1,"external_links":0,"defined_names":1,"comments":0,"pivot_tables":14},"unopened":[],"bounds":{"document_bytes":16777216,"sheet_cells":100000,"rows_first":2000,"rows_last":500,"rows_between":2000,"halvings":0,"cell_chars":16384,"cell_head_chars":4096},"cells_cut":0,"cells_raw":0,"read":"whole","date_system":"1900"}

{"sheet":"Dashboard","index":0,"n_rows":49,"n_cols":21,"rows_kept":49,"cut":false,"hidden":false,"merged":[[48,20,49,23]]}
[]
[]
[]
[]
[]
[]
[]
[]
[]
[]
[]
[]
[]
[]
[]
[]
[]
[]
[]
[]
[]
[]
[]
[]
[]
[]
[]
[]
[]
[]
[]
[]
[]
[]
[]
[]
[]
[]
[]
[]
[]
[]
[]
[]
[]
[]
[]
[]
[null,null,null,null,null,null,null,null,null,null,null,null,null,null,null,null,null,null,null,null,"Actualizar base de datos"]

{"sheet":"Bodega de datos","index":1,"n_rows":16,"n_cols":43,"rows_kept":16,"cut":false,"hidden":false,"merged":[[1,31,1,41],[1,1,1,8],[1,11,1,19],[1,21,1,30],[0,1,0,2]]}
[null,"Actualizar tabla "]
[null,"Canal de atención a la ciudadanía",null,null,null,null,null,null,null,null,null,"Entidad destinataria de la pqrsd que se está trasladando",null,null,null,null,null,null,null,null,null,"Tipología de las pqrs pendientes de trámite",null,null,null,null,null,null,null,null,null,"PQRSD pendientes de trámite por dependencia del DADEP"]
["Mes","Presencial","Telefónico","Redes sociales","Chat","Correo electrónico","Ventanilla de radicación","Buzón de sugerencias","Bogotá te escucha","Pqrs recibidas","Pqrs trasladadas","Secretaría de Movilidad","Secretaría de Desarrollo Económico","Secretaría de Gobierno","Secretaría de Ambiente","Secretaría de Habitat","Instituto para la Economía Social - IPES","Instituto Distrital de Recreación y Deporte -IDRD","Instituto Distrital de Participación y Acción Comunal - IDPAC","Otra entidad destinataria","Pqrs pendientes de trámite al final de cada mes","derecho de petición de interés particular","derecho de petición de interés general","reclamo","queja","solicitud de acceso a la información","consulta","felicitación","solicitud de copias","sugerencias","denuncia por actos de corrupción","Despacho","Registro Inmobiliario","Administración Inmobiliaria y Espacio Público","Subdirección Administriva y Financiera","Administrativa, Financiera y Control Disciplinario","Jurídica","Planeación","Sistemas","Atención al ciudadano","Control Interno","total","Columna1"]
["enero",157,84,11,19,861,72,0,415,415,274,20,0,156,18,1,23,8,0,48,220,141,62,0,2,3,8,0,4,0,0,0,60,150,0,5,2,0,0,3,0,{"$f":"+Tabla1[[#This Row],[Despacho]]+Tabla1[[#This Row],[Registro Inmobiliario]]+Tabla1[[#This Row],[Administración Inmobiliaria y Espacio Público]]+Tabla1[[#This Row],[Administrativa, Financiera y Control Disciplinario]]+Tabla1[[#This Row],[Jurídica]]+Tabla1[[#This Row],[Planeación]]+Tabla1[[#This Row],[Sistemas]]+Tabla1[[#This Row],[Control Interno]]+Tabla1[[#This Row],[Atención al ciudadano]]+Tabla1[[#This Row],[Subdirección Administriva y Financiera]]","v":220},{"$f":"+Tabla1[[#This Row],[Pqrs pendientes de trámite al final de cada mes]]","v":220}]
["febrero",319,145,10,96,1121,122,0,599,599,443,41,0,222,23,1,53,21,0,82,231,147,64,0,3,3,8,0,5,0,1,0,62,155,5,1,2,0,0,6,0,{"$f":"+Tabla1[[#This Row],[Despacho]]+Tabla1[[#This Row],[Registro Inmobiliario]]+Tabla1[[#This Row],[Administración Inmobiliaria y Espacio Público]]+Tabla1[[#This Row],[Administrativa, Financiera y Control Disciplinario]]+Tabla1[[#This Row],[Jurídica]]+Tabla1[[#This Row],[Planeación]]+Tabla1[[#This Row],[Sistemas]]+Tabla1[[#This Row],[Control Interno]]+Tabla1[[#This Row],[Atención al ciudadano]]+Tabla1[[#This Row],[Subdirección Administriva y Financiera]]","v":231},{"$f":"+Tabla1[[#This Row],[Pqrs pendientes de trámite al final de cada mes]]","v":231}]
["marzo",304,349,21,94,1482,155,0,628,628,381,25,1,170,17,0,36,24,8,100,269,192,68,0,0,1,5,0,2,0,1,0,69,191,0,1,4,0,0,4,0,{"$f":"+Tabla1[[#This Row],[Despacho]]+Tabla1[[#This Row],[Registro Inmobiliario]]+Tabla1[[#This Row],[Administración Inmobiliaria y Espacio Público]]+Tabla1[[#This Row],[Administrativa, Financiera y Control Disciplinario]]+Tabla1[[#This Row],[Jurídica]]+Tabla1[[#This Row],[Planeación]]+Tabla1[[#This Row],[Sistemas]]+Tabla1[[#This Row],[Control Interno]]+Tabla1[[#This Row],[Atención al ciudadano]]+Tabla1[[#This Row],[Subdirección Administriva y Financiera]]","v":269},{"$f":"+Tabla1[[#This Row],[Pqrs pendientes de trámite al final de cada mes]]","v":269}]
["abril",212,290,14,26,1225,133,0,546,546,310,16,0,142,22,1,27,19,3,80,329,235,81,0,7,0,5,0,1,0,0,0,78,241,1,1,0,0,0,8,null,{"$f":"+Tabla1[[#This Row],[Despacho]]+Tabla1[[#This Row],[Registro Inmobiliario]]+Tabla1[[#This Row],[Administración Inmobiliaria y Espacio Público]]+Tabla1[[#This Row],[Administrativa, Financiera y Control Disciplinario]]+Tabla1[[#This Row],[Jurídica]]+Tabla1[[#This Row],[Planeación]]+Tabla1[[#This Row],[Sistemas]]+Tabla1[[#This Row],[Control Interno]]+Tabla1[[#This Row],[Atención al ciudadano]]+Tabla1[[#This Row],[Subdirección Administriva y Financiera]]","v":329},{"$f":"+Tabla1[[#This Row],[Pqrs pendientes de trámite al final de cada mes]]","v":329}]
["mayo",325,373,12,5,1466,82,0,494,494,352,18,0,159,19,0,36,20,3,97,273,171,88,0,5,3,4,0,1,1,0,0,39,224,2,0,2,0,0,6,0,{"$f":"+Tabla1[[#This Row],[Despacho]]+Tabla1[[#This Row],[Registro Inmobiliario]]+Tabla1[[#This Row],[Administración Inmobiliaria y Espacio Público]]+Tabla1[[#This Row],[Administrativa, Financiera y Control Disciplinario]]+Tabla1[[#This Row],[Jurídica]]+Tabla1[[#This Row],[Planeación]]+Tabla1[[#This Row],[Sistemas]]+Tabla1[[#This Row],[Control Interno]]+Tabla1[[#This Row],[Atención al ciudadano]]+Tabla1[[#This Row],[Subdirección Administriva y Financiera]]","v":273},{"$f":"+Tabla1[[#This Row],[Pqrs pendientes de trámite al final de cada mes]]","v":273}]
["junio",null,null,null,null,null,null,null,null,null,null,null,null,null,null,null,null,null,null,null,null,null,null,null,null,null,null,null,null,null,null,null,null,null,null,null,null,null,null,null,null,{"$f":"+Tabla1[[#This Row],[Despacho]]+Tabla1[[#This Row],[Registro Inmobiliario]]+Tabla1[[#This Row],[Administración Inmobiliaria y Espacio Público]]+Tabla1[[#This Row],[Administrativa, Financiera y Control Disciplinario]]+Tabla1[[#This Row],[Jurídica]]+Tabla1[[#This Row],[Planeación]]+Tabla1[[#This Row],[Sistemas]]+Tabla1[[#This Row],[Control Interno]]+Tabla1[[#This Row],[Atención al ciudadano]]+Tabla1[[#This Row],[Subdirección Administriva y Financiera]]","v":0},{"$f":"+Tabla1[[#This Row],[Pqrs pendientes de trámite al final de cada mes]]","v":0}]
["julio",null,null,null,null,null,null,null,null,null,null,null,null,null,null,null,null,null,null,null,null,null,null,null,null,null,null,null,null,null,null,null,null,null,null,null,null,null,null,null,null,{"$f":"+Tabla1[[#This Row],[Despacho]]+Tabla1[[#This Row],[Registro Inmobiliario]]+Tabla1[[#This Row],[Administración Inmobiliaria y Espacio Público]]+Tabla1[[#This Row],[Administrativa, Financiera y Control Disciplinario]]+Tabla1[[#This Row],[Jurídica]]+Tabla1[[#This Row],[Planeación]]+Tabla1[[#This Row],[Sistemas]]+Tabla1[[#This Row],[Control Interno]]+Tabla1[[#This Row],[Atención al ciudadano]]+Tabla1[[#This Row],[Subdirección Administriva y Financiera]]","v":0},{"$f":"+Tabla1[[#This Row],[Pqrs pendientes de trámite al final de cada mes]]","v":0}]
["agosto",null,null,null,null,null,null,null,null,null,null,null,null,null,null,null,null,null,null,null,null,null,null,null,null,null,null,null,null,null,null,null,null,null,null,null,null,null,null,null,null,{"$f":"+Tabla1[[#This Row],[Despacho]]+Tabla1[[#This Row],[Registro Inmobiliario]]+Tabla1[[#This Row],[Administración Inmobiliaria y Espacio Público]]+Tabla1[[#This Row],[Administrativa, Financiera y Control Disciplinario]]+Tabla1[[#This Row],[Jurídica]]+Tabla1[[#This Row],[Planeación]]+Tabla1[[#This Row],[Sistemas]]+Tabla1[[#This Row],[Control Interno]]+Tabla1[[#This Row],[Atención al ciudadano]]+Tabla1[[#This Row],[Subdirección Administriva y Financiera]]","v":0},{"$f":"+Tabla1[[#This Row],[Pqrs pendientes de trámite al final de cada mes]]","v":0}]
["septiembre",null,null,null,null,null,null,null,null,null,null,null,null,null,null,null,null,null,null,null,null,null,null,null,null,null,null,null,null,null,null,null,null,null,null,null,null,null,null,null,null,{"$f":"+Tabla1[[#This Row],[Despacho]]+Tabla1[[#This Row],[Registro Inmobiliario]]+Tabla1[[#This Row],[Administración Inmobiliaria y Espacio Público]]+Tabla1[[#This Row],[Administrativa, Financiera y Control Disciplinario]]+Tabla1[[#This Row],[Jurídica]]+Tabla1[[#This Row],[Planeación]]+Tabla1[[#This Row],[Sistemas]]+Tabla1[[#This Row],[Control Interno]]+Tabla1[[#This Row],[Atención al ciudadano]]+Tabla1[[#This Row],[Subdirección Administriva y Financiera]]","v":0},{"$f":"+Tabla1[[#This Row],[Pqrs pendientes de trámite al final de cada mes]]","v":0}]
["octubre",null,null,null,null,null,null,null,null,null,null,null,null,null,null,null,null,null,null,null,null,null,null,null,null,null,null,null,null,null,null,null,null,null,null,null,null,null,null,null,null,{"$f":"+Tabla1[[#This Row],[Despacho]]+Tabla1[[#This Row],[Registro Inmobiliario]]+Tabla1[[#This Row],[Administración Inmobiliaria y Espacio Público]]+Tabla1[[#This Row],[Administrativa, Financiera y Control Disciplinario]]+Tabla1[[#This Row],[Jurídica]]+Tabla1[[#This Row],[Planeación]]+Tabla1[[#This Row],[Sistemas]]+Tabla1[[#This Row],[Control Interno]]+Tabla1[[#This Row],[Atención al ciudadano]]+Tabla1[[#This Row],[Subdirección Administriva y Financiera]]","v":0},{"$f":"+Tabla1[[#This Row],[Pqrs pendientes de trámite al final de cada mes]]","v":0}]
["noviembre",null,null,null,null,null,null,null,null,null,null,null,null,null,null,null,null,null,null,null,null,null,null,null,null,null,null,null,null,null,null,null,null,null,null,null,null,null,null,null,null,{"$f":"+Tabla1[[#This Row],[Despacho]]+Tabla1[[#This Row],[Registro Inmobiliario]]+Tabla1[[#This Row],[Administración Inmobiliaria y Espacio Público]]+Tabla1[[#This Row],[Administrativa, Financiera y Control Disciplinario]]+Tabla1[[#This Row],[Jurídica]]+Tabla1[[#This Row],[Planeación]]+Tabla1[[#This Row],[Sistemas]]+Tabla1[[#This Row],[Control Interno]]+Tabla1[[#This Row],[Atención al ciudadano]]+Tabla1[[#This Row],[Subdirección Administriva y Financiera]]","v":0},{"$f":"+Tabla1[[#This Row],[Pqrs pendientes de trámite al final de cada mes]]","v":0}]
["diciembre",null,null,null,null,null,null,null,null,null,null,null,null,null,null,null,null,null,null,null,null,null,null,null,null,null,null,null,null,null,null,null,null,null,null,null,null,null,null,null,null,{"$f":"+Tabla1[[#This Row],[Despacho]]+Tabla1[[#This Row],[Registro Inmobiliario]]+Tabla1[[#This Row],[Administración Inmobiliaria y Espacio Público]]+Tabla1[[#This Row],[Administrativa, Financiera y Control Disciplinario]]+Tabla1[[#This Row],[Jurídica]]+Tabla1[[#This Row],[Planeación]]+Tabla1[[#This Row],[Sistemas]]+Tabla1[[#This Row],[Control Interno]]+Tabla1[[#This Row],[Atención al ciudadano]]+Tabla1[[#This Row],[Subdirección Administriva y Financiera]]","v":0},{"$f":"+Tabla1[[#This Row],[Pqrs pendientes de trámite al final de cada mes]]","v":0}]
["Acumulado año",{"$f":"+B4+B5+B6+B7+B8+B9+B10+B11+B12+B13+B14+B15","v":1317},{"$f":"+C4+C5+C6+C7+C8+C9+C10+C11+C12+C13+C14+C15","v":1241},68,240,6155,564,0,{"$f":"+I4+I5+I6+I7+I8+I9+I10+I11+I12+I13+I14+I15","v":2682},{"$f":"+J15+J14+J13+J12+J11+J10+J9+J7+J8+J6+J5+J4","v":2682},{"$f":"+K15+K14+K13+K12+K11+K10+K9+K8+K7+K6+K5+K4","v":1760},120,1,849,99,3,175,92,14,407,1322,886,363,0,17,10,30,0,13,1,2,0,308,961,8,8,10,0,0,27,0,{"$f":"+AP15+AP14+AP13+AP12+AP11+AP10+AP9+AP8+AP7+AP6+AP5+AP4","v":1322},{"$f":"+Tabla1[[#This Row],[Pqrs pendientes de trámite al final de cada mes]]","v":1322}]

{"sheet":"Tablas dinámicas","index":2,"n_rows":108,"n_cols":11,"rows_kept":108,"cut":false,"hidden":false,"merged":[[0,6,2,9],[0,1,1,4],[2,1,2,4]]}
[null,"Regresar "]
[]
[null,"al Dashboard"]
["Cantidad de atenciones brindadas a la ciudadanía por canal"]
[]
["Etiquetas de fila","Suma de Presencial",null,"Etiquetas de fila","Suma de Telefónico",null,"Etiquetas de fila","Suma de Redes sociales",null,"Etiquetas de fila","Suma de Chat"]
["mayo",325,null,"mayo",373,null,"mayo",12,null,"mayo",5]
["Total general",325,null,"Total general",373,null,"Total general",12,null,"Total general",5]
[]
[]
[]
[]
[]
[]
[]
[]
[]
[]
[]
[]
[null,{"$f":"+GETPIVOTDATA(\"Presencial\",$A$6)","v":325}]
[]
["Etiquetas de fila","Suma de Correo electrónico",null,"Etiquetas de fila","Suma de Ventanilla de radicación",null,"Etiquetas de fila","Suma de Buzón de sugerencias",null,"Etiquetas de fila","Suma de Bogotá te escucha"]
["mayo",1466,null,"mayo",82,null,"mayo",0,null,"mayo",494]
["Total general",1466,null,"Total general",82,null,"Total general",0,null,"Total general",494]
[]
[]
[]
[]
[]
[]
[]
[]
[]
[]
[]
[]
[]
[]
["Cantidad de PQRS recibidas y trasladadas"]
[]
["Etiquetas de fila","Suma de Pqrs recibidas",null,"Etiquetas de fila","Suma de Pqrs trasladadas",null,null,"Etiquetas de columna"]
["mayo",494,null,"mayo",352,null,"Valores","mayo","Total general"]
["Total general",494,null,"Total general",352,null,"Secretaría de Movilidad.",18,18]
[null,null,null,null,null,null,"Secretaría de Desarrollo Económico.",0,0]
[null,null,null,null,null,null,"Secretaría de Gobierno.",159,159]
[null,null,null,null,null,null,"Secretaría de Ambiente.",19,19]
[null,null,null,null,null,null,"Recreación y Deporte -IDRD.",20,20]
[null,null,null,null,null,null,"Participación y Acción Comunal - IDPAC.",3,3]
[null,null,null,null,null,null,"Instituto para la Economía Social - IPES.",36,36]
[null,null,null,null,null,null,"Otra entidad destinataria.",97,97]
[]
[]
[]
[]
[]
[]
[]
["Cantidad de PQRSD por tipología pendientes de trámite"]
[]
[null,"Etiquetas de columna"]
["Valores","mayo","Total general"]
["Derecho de petición de interés particular.",171,171]
["Derecho de petición de interés general.",88,88]
["Reclamo.",0,0]
["Queja.",5,5]
["Solicitud de acceso a la información.",3,3]
["Consulta.",4,4]
["Felicitación.",0,0]
["Solicitud de copias.",1,1]
["Sugerencias.",1,1]
["Denuncia por actos de corrupción.",0,0]
[]
[]
["PQRSD pendientes de trámite al final del mes"]
[]
["Etiquetas de fila","Pqrs pendientes de trámite al final de cada mes."]
["mayo",273]
["Total general",273]
[]
[]
[]
[]
[]
[]
[]
[]
[]
[]
[]
[]
[]
[]
[]
[]
[]
[]
[null,"Etiquetas de columna"]
["Valores","mayo","Total general"]
["Despacho.",0,0]
["Registro Inmobiliario.",39,39]
["Administración Inmobiliaria y Espacio Público.",224,224]
["Administrativa, Financiera y Control Disciplinario.",0,0]
["Jurídica.",2,2]
["Planeación.",0,0]
["Sistemas.",0,0]
["Control Interno.",0,0]
[" Atención al ciudadano",6,6]